[Event "Titled Tuesday Blitz September 20 Late 2022"]
[White "Preotu, Razvan"]
[Black "Graif, William"]
[WhiteFideId "2613280"]
[BlackFideId "2609835"]
[WhiteElo "2407"]
[BlackElo "1942"]
[Result "0-1"]
[Round "10"]
[TimeControl "180+1"]
[Date "2022.09.20"]
[WhiteClock "0:00:03"]
[BlackClock "0:00:09"]

1. e4 {[%clk 0:03:00]}  e5 {[%clk 0:02:55]} 2. Nf3 {[%clk 0:03:00]}  Bc5 {[%clk 0:02:54]} 3. Bc4 {[%clk 0:02:45]}  Nf6 {[%clk 0:02:53]} 4. d3 {[%clk 0:02:42]}  Nc6 {[%clk 0:02:46]} 5. c3 {[%clk 0:02:41]}  d6 {[%clk 0:02:35]} 6. O-O {[%clk 0:02:40]}  a6 {[%clk 0:02:24]} 7. a4 {[%clk 0:02:40]}  Ba7 {[%clk 0:02:19]} 8. Re1 {[%clk 0:02:39]}  O-O {[%clk 0:02:07]} 9. h3 {[%clk 0:02:33]}  Ne7 {[%clk 0:01:57]} 10. d4 {[%clk 0:02:07]}  Ng6 {[%clk 0:01:54]} 11. Bd3 {[%clk 0:02:05]}  Re8 {[%clk 0:01:06]} 12. Bc2 {[%clk 0:01:47]}  c6 {[%clk 0:00:36]} 13. a5 {[%clk 0:01:37]}  d5 {[%clk 0:00:32]} 14. Nxe5 {[%clk 0:01:33]}  Nxe4 {[%clk 0:00:28]} 15. Nxg6 {[%clk 0:01:21]}  hxg6 {[%clk 0:00:28]} 16. Bf4 {[%clk 0:00:57]}  Bf5 {[%clk 0:00:27]} 17. Nd2 {[%clk 0:00:56]}  Bb8 {[%clk 0:00:20]} 18. Bxb8 {[%clk 0:00:48]}  Qxb8 {[%clk 0:00:20]} 19. Nxe4 {[%clk 0:00:43]}  Bxe4 {[%clk 0:00:20]} 20. Bxe4 {[%clk 0:00:42]}  Rxe4 {[%clk 0:00:21]} 21. Rxe4 {[%clk 0:00:41]}  dxe4 {[%clk 0:00:22]} 22. Qb3 {[%clk 0:00:41]}  Qc7 {[%clk 0:00:20]} 23. Qb4 {[%clk 0:00:35]}  Re8 {[%clk 0:00:20]} 24. Re1 {[%clk 0:00:34]}  f5 {[%clk 0:00:18]} 25. Qc5 {[%clk 0:00:34]}  Qe7 {[%clk 0:00:17]} 26. b4 {[%clk 0:00:27]}  Qxc5 {[%clk 0:00:16]} 27. bxc5 {[%clk 0:00:27]}  Kf7 {[%clk 0:00:17]} 28. h4 {[%clk 0:00:19]}  Ke6 {[%clk 0:00:17]} 29. Rb1 {[%clk 0:00:17]}  Re7 {[%clk 0:00:17]} 30. Kh2 {[%clk 0:00:15]}  Kd5 {[%clk 0:00:17]} 31. Rb4 {[%clk 0:00:15]}  f4 {[%clk 0:00:15]} 32. Kg1 {[%clk 0:00:14]}  e3 {[%clk 0:00:14]} 33. fxe3 {[%clk 0:00:13]}  fxe3 {[%clk 0:00:15]} 34. Kf1 {[%clk 0:00:13]}  Ke4 {[%clk 0:00:16]} 35. Ke2 {[%clk 0:00:12]}  Rf7 {[%clk 0:00:13]} 36. d5+ {[%clk 0:00:11]}  Kxd5 {[%clk 0:00:14]} 37. Kxe3 {[%clk 0:00:11]}  Kxc5 {[%clk 0:00:14]} 38. g4 {[%clk 0:00:06]}  Kd5 {[%clk 0:00:13]} 39. Rd4+ {[%clk 0:00:05]}  Ke6 {[%clk 0:00:12]} 40. Rb4 {[%clk 0:00:06]}  c5 {[%clk 0:00:11]} 41. Rb6+ {[%clk 0:00:05]}  Kd5 {[%clk 0:00:11]} 42. c4+ {[%clk 0:00:06]}  Kxc4 {[%clk 0:00:11]} 43. Rxg6 {[%clk 0:00:06]}  Kb4 {[%clk 0:00:10]} 44. h5 {[%clk 0:00:06]}  c4 {[%clk 0:00:10]} 45. g5 {[%clk 0:00:05]}  c3 {[%clk 0:00:09]} 46. Rb6+ {[%clk 0:00:04]}  Ka3 {[%clk 0:00:08]} 47. Kd3 {[%clk 0:00:03]}  Rc7 {[%clk 0:00:08]} 48. Kc2 {[%clk 0:00:03]}  Rc5 {[%clk 0:00:08]} 49. h6 {[%clk 0:00:04]}  Rxg5 {[%clk 0:00:08]} 50. hxg7 {[%clk 0:00:04]}  Rxg7 {[%clk 0:00:08]} 51. Kxc3 {[%clk 0:00:03]}  Rc7+ {[%clk 0:00:09]} 52. Kd4 {[%clk 0:00:03]}  Ka4 {[%clk 0:00:09]} 53. Rb1 {[%clk 0:00:03]}  Kxa5 {[%clk 0:00:10]} 54. Kd5 {[%clk 0:00:03]}  b5 {[%clk 0:00:09]} 0-1


[Site "https://www.chess.com"]

[Event "Titled Tuesday Blitz September 20 Late 2022"]
[White "Rasulov, Vugar"]
[Black "Jobava, Baadur"]
[WhiteFideId "13402390"]
[BlackFideId "13601520"]
[WhiteElo "2509"]
[BlackElo "2582"]
[Result "1-0"]
[Round "10"]
[TimeControl "180+1"]
[Date "2022.09.20"]
[WhiteClock "0:00:06"]
[BlackClock "0:00:01"]

1. d4 {[%clk 0:03:00]}  d5 {[%clk 0:02:58]} 2. c4 {[%clk 0:03:01]}  dxc4 {[%clk 0:02:56]} 3. e3 {[%clk 0:03:01]}  e5 {[%clk 0:02:56]} 4. Bxc4 {[%clk 0:03:00]}  exd4 {[%clk 0:02:56]} 5. Qb3 {[%clk 0:02:57]}  Qe7 {[%clk 0:02:39]} 6. Nf3 {[%clk 0:02:57]}  Qb4+ {[%clk 0:02:39]} 7. Nbd2 {[%clk 0:02:46]}  Qxb3 {[%clk 0:02:38]} 8. Nxb3 {[%clk 0:02:47]}  Bb4+ {[%clk 0:02:34]} 9. Ke2 {[%clk 0:02:39]}  dxe3 {[%clk 0:02:34]} 10. Bxe3 {[%clk 0:02:40]}  Nf6 {[%clk 0:02:33]} 11. Bf4 {[%clk 0:02:35]}  O-O {[%clk 0:02:28]} 12. Rhd1 {[%clk 0:02:33]}  c6 {[%clk 0:02:15]} 13. a3 {[%clk 0:02:14]}  Be7 {[%clk 0:02:12]} 14. Bd6 {[%clk 0:02:14]}  Bxd6 {[%clk 0:02:08]} 15. Rxd6 {[%clk 0:02:15]}  Bg4 {[%clk 0:02:08]} 16. Nc5 {[%clk 0:01:56]}  b6 {[%clk 0:02:06]} 17. Nd3 {[%clk 0:01:57]}  Re8+ {[%clk 0:01:55]} 18. Kf1 {[%clk 0:01:57]}  Ne4 {[%clk 0:01:55]} 19. Rd4 {[%clk 0:01:47]}  Bxf3 {[%clk 0:01:49]} 20. gxf3 {[%clk 0:01:46]}  Nd2+ {[%clk 0:01:49]} 21. Kg2 {[%clk 0:01:46]}  c5 {[%clk 0:01:48]} 22. Bd5 {[%clk 0:01:37]}  cxd4 {[%clk 0:01:35]} 23. Bxa8 {[%clk 0:01:37]}  Nb3 {[%clk 0:01:32]} 24. Rd1 {[%clk 0:01:36]}  Kf8 {[%clk 0:01:27]} 25. Bd5 {[%clk 0:01:31]}  Nc5 {[%clk 0:01:26]} 26. Nf4 {[%clk 0:01:16]}  g5 {[%clk 0:01:18]} 27. Nh5 {[%clk 0:01:11]}  Rd8 {[%clk 0:01:18]} 28. Rxd4 {[%clk 0:00:57]}  Nc6 {[%clk 0:01:18]} 29. Rd1 {[%clk 0:00:57]}  Ne5 {[%clk 0:00:57]} 30. b4 {[%clk 0:00:48]}  Ne6 {[%clk 0:00:52]} 31. Kg3 {[%clk 0:00:33]}  Ke7 {[%clk 0:00:46]} 32. Bb3 {[%clk 0:00:27]}  Nd4 {[%clk 0:00:41]} 33. Re1 {[%clk 0:00:22]}  f6 {[%clk 0:00:38]} 34. Bd1 {[%clk 0:00:22]}  Nf5+ {[%clk 0:00:36]} 35. Kg2 {[%clk 0:00:22]}  Nh4+ {[%clk 0:00:28]} 36. Kf1 {[%clk 0:00:20]}  Ng6 {[%clk 0:00:23]} 37. Bc2 {[%clk 0:00:19]}  Rd2 {[%clk 0:00:22]} 38. Be4 {[%clk 0:00:17]}  Ra2 {[%clk 0:00:15]} 39. Rc1 {[%clk 0:00:15]}  Kd6 {[%clk 0:00:11]} 40. Nxf6 {[%clk 0:00:14]}  Nf4 {[%clk 0:00:12]} 41. Nxh7 {[%clk 0:00:13]}  g4 {[%clk 0:00:11]} 42. Ng5 {[%clk 0:00:11]}  Rxa3 {[%clk 0:00:11]} 43. Rd1+ {[%clk 0:00:10]}  Ke7 {[%clk 0:00:11]} 44. fxg4 {[%clk 0:00:08]}  Nxg4 {[%clk 0:00:12]} 45. h3 {[%clk 0:00:08]}  Nxh3 {[%clk 0:00:09]} 46. Nxh3 {[%clk 0:00:09]}  Rxh3 {[%clk 0:00:09]} 47. Kg2 {[%clk 0:00:08]}  Rb3 {[%clk 0:00:08]} 48. Ra1 {[%clk 0:00:08]}  Rxb4 {[%clk 0:00:07]} 49. Rxa7+ {[%clk 0:00:09]}  Kf6 {[%clk 0:00:08]} 50. Bf3 {[%clk 0:00:09]}  Ne5 {[%clk 0:00:09]} 51. Bd5 {[%clk 0:00:09]}  b5 {[%clk 0:00:08]} 52. Kg3 {[%clk 0:00:09]}  Kf5 {[%clk 0:00:08]} 53. Ra8 {[%clk 0:00:08]}  Rd4 {[%clk 0:00:08]} 54. Rf8+ {[%clk 0:00:08]}  Kg6 {[%clk 0:00:09]} 55. Bg2 {[%clk 0:00:06]}  b4 {[%clk 0:00:08]} 56. f4 {[%clk 0:00:07]}  Rd3+ {[%clk 0:00:08]} 57. Kh4 {[%clk 0:00:06]}  Nf3+ {[%clk 0:00:09]} 58. Kg4 {[%clk 0:00:06]}  Nd2 {[%clk 0:00:08]} 59. f5+ {[%clk 0:00:05]}  Kg7 {[%clk 0:00:08]} 60. Rb8 {[%clk 0:00:06]}  b3 {[%clk 0:00:09]} 61. Rb7+ {[%clk 0:00:05]}  Kf6 {[%clk 0:00:09]} 62. Rb6+ {[%clk 0:00:06]}  Ke5 {[%clk 0:00:09]} 63. f6 {[%clk 0:00:06]}  Nc4 {[%clk 0:00:09]} 64. f7 {[%clk 0:00:05]}  Ne3+ {[%clk 0:00:08]} 65. Kg5 {[%clk 0:00:05]}  Rd8 {[%clk 0:00:07]} 66. Bh3 {[%clk 0:00:05]}  Rf8 {[%clk 0:00:06]} 67. Kg6 {[%clk 0:00:05]}  Nd5 {[%clk 0:00:05]} 68. Rb5 {[%clk 0:00:05]}  Kd6 {[%clk 0:00:04]} 69. Kg7 {[%clk 0:00:05]}  Rxf7+ {[%clk 0:00:01]} 70. Kxf7 {[%clk 0:00:06]} 1-0


[Site "https://www.chess.com"]

[Event "Titled Tuesday Blitz September 20 Late 2022"]
[White "Rosen, Eric"]
[Black "Hirneise, Jens"]
[WhiteFideId "2032562"]
[BlackFideId "24614734"]
[WhiteElo "2362"]
[BlackElo "2344"]
[Result "0-1"]
[Round "10"]
[TimeControl "180+1"]
[Date "2022.09.20"]
[WhiteClock "0:00:01"]
[BlackClock "0:00:10"]

1. d4 {[%clk 0:03:00]}  d5 {[%clk 0:02:54]} 2. Bf4 {[%clk 0:03:00]}  Nf6 {[%clk 0:02:50]} 3. e3 {[%clk 0:02:59]}  a6 {[%clk 0:02:48]} 4. Nf3 {[%clk 0:02:59]}  g6 {[%clk 0:02:47]} 5. h4 {[%clk 0:02:56]}  h5 {[%clk 0:02:45]} 6. Ne5 {[%clk 0:02:53]}  Bg7 {[%clk 0:02:38]} 7. c4 {[%clk 0:02:53]}  c6 {[%clk 0:02:35]} 8. Nc3 {[%clk 0:02:52]}  Nbd7 {[%clk 0:02:31]} 9. Qb3 {[%clk 0:02:47]}  e6 {[%clk 0:02:11]} 10. Qa3 {[%clk 0:02:17]}  Bf8 {[%clk 0:02:01]} 11. Qb3 {[%clk 0:02:12]}  Be7 {[%clk 0:01:52]} 12. Be2 {[%clk 0:02:09]}  Qa5 {[%clk 0:01:40]} 13. O-O {[%clk 0:02:07]}  O-O {[%clk 0:01:35]} 14. a3 {[%clk 0:01:54]}  Nxe5 {[%clk 0:01:31]} 15. Bxe5 {[%clk 0:01:53]}  Nd7 {[%clk 0:01:26]} 16. Bg3 {[%clk 0:01:53]}  Qd8 {[%clk 0:01:26]} 17. e4 {[%clk 0:01:40]}  Bxh4 {[%clk 0:01:14]} 18. Bd6 {[%clk 0:01:33]}  Be7 {[%clk 0:01:09]} 19. Bf4 {[%clk 0:01:13]}  dxe4 {[%clk 0:01:03]} 20. Nxe4 {[%clk 0:01:13]}  Nf6 {[%clk 0:01:04]} 21. Qe3 {[%clk 0:01:07]}  Nxe4 {[%clk 0:01:01]} 22. Qxe4 {[%clk 0:01:08]}  Bf6 {[%clk 0:01:01]} 23. Rad1 {[%clk 0:01:08]}  Qe7 {[%clk 0:00:54]} 24. c5 {[%clk 0:01:01]}  Rd8 {[%clk 0:00:53]} 25. b4 {[%clk 0:00:51]}  Qf8 {[%clk 0:00:46]} 26. Bc4 {[%clk 0:00:43]}  Qg7 {[%clk 0:00:43]} 27. Bd6 {[%clk 0:00:44]}  Bd7 {[%clk 0:00:32]} 28. Rfe1 {[%clk 0:00:40]}  Re8 {[%clk 0:00:28]} 29. Re2 {[%clk 0:00:26]}  h4 {[%clk 0:00:27]} 30. Rde1 {[%clk 0:00:23]}  Qh6 {[%clk 0:00:27]} 31. Rd1 {[%clk 0:00:21]}  Qg5 {[%clk 0:00:25]} 32. a4 {[%clk 0:00:18]}  Qf5 {[%clk 0:00:25]} 33. Qe3 {[%clk 0:00:15]}  Bg5 {[%clk 0:00:24]} 34. Qc3 {[%clk 0:00:15]}  Bf4 {[%clk 0:00:23]} 35. Qf3 {[%clk 0:00:12]}  Bxd6 {[%clk 0:00:22]} 36. cxd6 {[%clk 0:00:04]}  Qxf3 {[%clk 0:00:22]} 37. gxf3 {[%clk 0:00:05]}  Kg7 {[%clk 0:00:19]} 38. Kg2 {[%clk 0:00:05]}  Rad8 {[%clk 0:00:19]} 39. Rb2 {[%clk 0:00:02]}  Bc8 {[%clk 0:00:18]} 40. b5 {[%clk 0:00:03]}  axb5 {[%clk 0:00:16]} 41. axb5 {[%clk 0:00:04]}  cxb5 {[%clk 0:00:11]} 42. Bxb5 {[%clk 0:00:04]}  Rh8 {[%clk 0:00:12]} 43. Rc1 {[%clk 0:00:01]}  Rxd6 {[%clk 0:00:12]} 44. Rbc2 {[%clk 0:00:01]}  Bd7 {[%clk 0:00:12]} 45. Bd3 {[%clk 0:00:01]}  Rxd4 {[%clk 0:00:12]} 46. Be4 {[%clk 0:00:02]}  b5 {[%clk 0:00:12]} 47. Rc7 {[%clk 0:00:02]}  h3+ {[%clk 0:00:12]} 48. Kh2 {[%clk 0:00:02]}  b4 {[%clk 0:00:13]} 49. Ra7 {[%clk 0:00:02]}  Kf6 {[%clk 0:00:11]} 50. Rcc7 {[%clk 0:00:02]}  Rd8 {[%clk 0:00:12]} 51. Bc2 {[%clk 0:00:01]}  Ke5 {[%clk 0:00:10]} 0-1


[Site "https://www.chess.com"]

[Event "Titled Tuesday Blitz September 20 Late 2022"]
[White "Safarli, Eltaj"]
[Black "Paravyan, David"]
[WhiteFideId "13402129"]
[BlackFideId "4194985"]
[WhiteElo "2911"]
[BlackElo "2923"]
[Result "1-0"]
[Round "10"]
[TimeControl "180+1"]
[Date "2022.09.20"]
[WhiteClock "0:01:44"]
[BlackClock "0:01:58"]

1. e4 {[%clk 0:03:00]}  c6 {[%clk 0:03:00]} 2. Nf3 {[%clk 0:02:59]}  d5 {[%clk 0:03:00]} 3. d3 {[%clk 0:03:00]}  e6 {[%clk 0:02:59]} 4. Nbd2 {[%clk 0:02:57]}  Bd6 {[%clk 0:02:58]} 5. g3 {[%clk 0:02:57]}  Ne7 {[%clk 0:02:58]} 6. Bg2 {[%clk 0:02:57]}  O-O {[%clk 0:02:58]} 7. O-O {[%clk 0:02:57]}  Nd7 {[%clk 0:02:58]} 8. Re1 {[%clk 0:02:56]}  a5 {[%clk 0:02:59]} 9. Qe2 {[%clk 0:02:51]}  a4 {[%clk 0:02:58]} 10. a3 {[%clk 0:02:50]}  b6 {[%clk 0:02:56]} 11. e5 {[%clk 0:02:46]}  Bc7 {[%clk 0:02:57]} 12. Nf1 {[%clk 0:02:45]}  c5 {[%clk 0:02:55]} 13. h4 {[%clk 0:02:43]}  Ng6 {[%clk 0:02:53]} 14. Bf4 {[%clk 0:02:21]}  Nxf4 {[%clk 0:02:51]} 15. gxf4 {[%clk 0:02:22]}  f6 {[%clk 0:02:51]} 16. Bh3 {[%clk 0:02:19]}  fxe5 {[%clk 0:02:49]} 17. Bxe6+ {[%clk 0:02:18]}  Kh8 {[%clk 0:02:49]} 18. Bxd5 {[%clk 0:02:15]}  Ra7 {[%clk 0:02:37]} 19. fxe5 {[%clk 0:02:15]}  Nxe5 {[%clk 0:02:35]} 20. Nxe5 {[%clk 0:01:58]}  Qxd5 {[%clk 0:02:35]} 21. Qh5 {[%clk 0:01:58]}  Bxe5 {[%clk 0:02:21]} 22. Rxe5 {[%clk 0:01:59]}  Qd4 {[%clk 0:02:21]} 23. Ne3 {[%clk 0:01:55]}  Qf4 {[%clk 0:02:15]} 24. Rf1 {[%clk 0:01:52]}  Raf7 {[%clk 0:02:06]} 25. Ng2 {[%clk 0:01:48]}  Qd4 {[%clk 0:02:00]} 26. Qxf7 {[%clk 0:01:46]}  Qd8 {[%clk 0:01:58]} 27. Qe7 {[%clk 0:01:44]} 1-0


[Site "https://www.chess.com"]

[Event "Titled Tuesday Blitz September 20 Late 2022"]
[White "Sernecki, Franciszek"]
[Black "Le Hetet, Nicolas"]
[WhiteFideId "1169297"]
[BlackFideId "634824"]
[WhiteElo "2168"]
[BlackElo "2364"]
[Result "1-0"]
[Round "10"]
[TimeControl "180+1"]
[Date "2022.09.20"]
[WhiteClock "0:02:44"]
[BlackClock "0:02:10"]

1. c4 {[%clk 0:02:57]}  c6 {[%clk 0:02:15]} 2. Nc3 {[%clk 0:02:56]}  d5 {[%clk 0:02:15]} 3. cxd5 {[%clk 0:02:57]}  cxd5 {[%clk 0:02:15]} 4. d4 {[%clk 0:02:58]}  Nf6 {[%clk 0:02:15]} 5. Bg5 {[%clk 0:02:58]}  Nc6 {[%clk 0:02:13]} 6. Bxf6 {[%clk 0:02:58]}  gxf6 {[%clk 0:02:13]} 7. Nf3 {[%clk 0:02:58]}  Bg7 {[%clk 0:02:13]} 8. e3 {[%clk 0:02:59]}  e6 {[%clk 0:02:14]} 9. Bb5 {[%clk 0:02:58]}  f5 {[%clk 0:02:14]} 10. O-O {[%clk 0:02:58]}  O-O {[%clk 0:02:14]} 11. Rc1 {[%clk 0:02:57]}  Bd7 {[%clk 0:02:14]} 12. Na4 {[%clk 0:02:57]}  Rc8 {[%clk 0:02:12]} 13. Nc5 {[%clk 0:02:57]}  b6 {[%clk 0:02:11]} 14. Nxd7 {[%clk 0:02:55]}  Qxd7 {[%clk 0:02:11]} 15. Qa4 {[%clk 0:02:53]}  Qd6 {[%clk 0:02:10]} 16. Bxc6 {[%clk 0:02:44]} 1-0


[Site "https://www.chess.com"]

[Event "Titled Tuesday Blitz September 20 Late 2022"]
[White "Shandrygin, Nikita"]
[Black "Estrada Nieto, Julian"]
[WhiteFideId "24198668"]
[BlackFideId "5101018"]
[WhiteElo "2323"]
[BlackElo "2252"]
[Result "1/2-1/2"]
[Round "10"]
[TimeControl "180+1"]
[Date "2022.09.20"]
[WhiteClock "0:00:13"]
[BlackClock "0:00:08"]

1. e4 {[%clk 0:02:42]}  e5 {[%clk 0:02:58]} 2. Nf3 {[%clk 0:02:41]}  Nc6 {[%clk 0:02:58]} 3. Bb5 {[%clk 0:02:41]}  a6 {[%clk 0:02:59]} 4. Ba4 {[%clk 0:02:42]}  Nf6 {[%clk 0:02:59]} 5. Qe2 {[%clk 0:02:42]}  Be7 {[%clk 0:02:58]} 6. O-O {[%clk 0:02:41]}  b5 {[%clk 0:02:50]} 7. Bb3 {[%clk 0:02:40]}  O-O {[%clk 0:02:51]} 8. c3 {[%clk 0:02:39]}  d5 {[%clk 0:02:51]} 9. d3 {[%clk 0:02:34]}  Re8 {[%clk 0:02:43]} 10. Rd1 {[%clk 0:02:31]}  h6 {[%clk 0:02:41]} 11. Nbd2 {[%clk 0:02:31]}  Bb7 {[%clk 0:02:41]} 12. Nf1 {[%clk 0:02:31]}  Na5 {[%clk 0:02:41]} 13. Bc2 {[%clk 0:02:30]}  Bf8 {[%clk 0:02:38]} 14. Ng3 {[%clk 0:02:18]}  c5 {[%clk 0:02:37]} 15. h3 {[%clk 0:02:06]}  Qc8 {[%clk 0:02:29]} 16. Nf5 {[%clk 0:02:01]}  c4 {[%clk 0:02:28]} 17. Ng3 {[%clk 0:01:55]}  Qc6 {[%clk 0:01:55]} 18. exd5 {[%clk 0:01:25]}  Nxd5 {[%clk 0:01:51]} 19. dxc4 {[%clk 0:01:18]}  Nxc4 {[%clk 0:01:40]} 20. Be4 {[%clk 0:00:46]}  Rad8 {[%clk 0:01:39]} 21. Nf5 {[%clk 0:00:41]}  Qe6 {[%clk 0:01:26]} 22. Qc2 {[%clk 0:00:33]}  Rd7 {[%clk 0:01:00]} 23. Re1 {[%clk 0:00:30]}  Qf6 {[%clk 0:00:50]} 24. Ng3 {[%clk 0:00:27]}  Ndb6 {[%clk 0:00:30]} 25. Bxb7 {[%clk 0:00:25]}  Rxb7 {[%clk 0:00:30]} 26. b3 {[%clk 0:00:25]}  Nd6 {[%clk 0:00:28]} 27. Bb2 {[%clk 0:00:24]}  Rc7 {[%clk 0:00:27]} 28. c4 {[%clk 0:00:22]}  bxc4 {[%clk 0:00:22]} 29. Bxe5 {[%clk 0:00:22]}  Qd8 {[%clk 0:00:18]} 30. Rad1 {[%clk 0:00:21]}  cxb3 {[%clk 0:00:13]} 31. Qxb3 {[%clk 0:00:22]}  Nbc4 {[%clk 0:00:12]} 32. Bxd6 {[%clk 0:00:16]}  Rxe1+ {[%clk 0:00:11]} 33. Nxe1 {[%clk 0:00:16]}  Nxd6 {[%clk 0:00:09]} 34. Nf3 {[%clk 0:00:15]}  Qc8 {[%clk 0:00:09]} 35. Ne5 {[%clk 0:00:14]}  Rc3 {[%clk 0:00:09]} 36. Qd5 {[%clk 0:00:14]}  Rc1 {[%clk 0:00:09]} 37. Rxc1 {[%clk 0:00:12]}  Qxc1+ {[%clk 0:00:09]} 38. Kh2 {[%clk 0:00:13]}  Qf4 {[%clk 0:00:09]} 39. Nf3 {[%clk 0:00:12]}  h5 {[%clk 0:00:08]} 40. Qxh5 {[%clk 0:00:11]}  Ne4 {[%clk 0:00:05]} 41. Qg4 {[%clk 0:00:11]}  Qxg4 {[%clk 0:00:05]} 42. hxg4 {[%clk 0:00:12]}  Nxf2 {[%clk 0:00:06]} 43. g5 {[%clk 0:00:11]}  Bd6 {[%clk 0:00:05]} 44. Nd4 {[%clk 0:00:10]}  Ne4 {[%clk 0:00:04]} 45. Nf5 {[%clk 0:00:10]}  Be5 {[%clk 0:00:04]} 46. Kh3 {[%clk 0:00:10]}  Nxg3 {[%clk 0:00:04]} 47. Nxg3 {[%clk 0:00:10]}  Bxg3 {[%clk 0:00:04]} 48. Kxg3 {[%clk 0:00:11]}  Kh7 {[%clk 0:00:04]} 49. Kf4 {[%clk 0:00:11]}  Kg6 {[%clk 0:00:04]} 50. g4 {[%clk 0:00:11]}  a5 {[%clk 0:00:04]} 51. a4 {[%clk 0:00:11]}  f6 {[%clk 0:00:04]} 52. gxf6 {[%clk 0:00:11]}  gxf6 {[%clk 0:00:05]} 53. Kg3 {[%clk 0:00:11]}  Kg5 {[%clk 0:00:05]} 54. Kf3 {[%clk 0:00:11]}  f5 {[%clk 0:00:05]} 55. gxf5 {[%clk 0:00:12]}  Kxf5 {[%clk 0:00:06]} 56. Ke3 {[%clk 0:00:13]}  Ke5 {[%clk 0:00:07]} 57. Kd3 {[%clk 0:00:13]}  Kd5 {[%clk 0:00:07]} 58. Kc3 {[%clk 0:00:14]}  Kc5 {[%clk 0:00:08]} 59. Kb3 {[%clk 0:00:13]} 1/2-1/2


[Site "https://www.chess.com"]

[Event "Titled Tuesday Blitz September 20 Late 2022"]
[White "Souleidis, Georgios"]
[Black "Tanenbaum, Zachary"]
[WhiteFideId "4206827"]
[BlackFideId "2060850"]
[WhiteElo "2401"]
[BlackElo "2175"]
[Result "0-1"]
[Round "10"]
[TimeControl "180+1"]
[Date "2022.09.20"]
[WhiteClock "0:00:06"]
[BlackClock "0:01:13"]

1. e4 {[%clk 0:03:00]}  e5 {[%clk 0:02:59]} 2. Nc3 {[%clk 0:03:00]}  Nc6 {[%clk 0:03:00]} 3. Bc4 {[%clk 0:03:00]}  Nf6 {[%clk 0:03:01]} 4. d3 {[%clk 0:03:00]}  Na5 {[%clk 0:03:01]} 5. Nge2 {[%clk 0:03:00]}  Bc5 {[%clk 0:03:00]} 6. O-O {[%clk 0:02:59]}  d6 {[%clk 0:03:00]} 7. Ng3 {[%clk 0:02:46]}  O-O {[%clk 0:02:51]} 8. Kh1 {[%clk 0:02:37]}  Nxc4 {[%clk 0:02:49]} 9. dxc4 {[%clk 0:02:37]}  Ng4 {[%clk 0:02:49]} 10. Qf3 {[%clk 0:02:26]}  Be6 {[%clk 0:02:42]} 11. b3 {[%clk 0:02:25]}  Qh4 {[%clk 0:02:36]} 12. h3 {[%clk 0:02:25]}  Bd4 {[%clk 0:02:27]} 13. Bb2 {[%clk 0:02:07]}  Nf6 {[%clk 0:02:18]} 14. Na4 {[%clk 0:01:54]}  Bg4 {[%clk 0:02:10]} 15. Nf5 {[%clk 0:01:23]}  Bxf3 {[%clk 0:02:00]} 16. Nxh4 {[%clk 0:01:24]}  Bxb2 {[%clk 0:02:00]} 17. Nxb2 {[%clk 0:01:23]}  Bxe4 {[%clk 0:02:01]} 18. Rac1 {[%clk 0:01:16]}  g5 {[%clk 0:01:42]} 19. Nf3 {[%clk 0:01:09]}  Bxf3 {[%clk 0:01:42]} 20. gxf3 {[%clk 0:01:10]}  Kh8 {[%clk 0:01:24]} 21. Rfe1 {[%clk 0:01:10]}  Nh5 {[%clk 0:01:21]} 22. c5 {[%clk 0:01:09]}  Nf4 {[%clk 0:01:19]} 23. Kh2 {[%clk 0:01:09]}  Rad8 {[%clk 0:01:16]} 24. cxd6 {[%clk 0:01:07]}  Rxd6 {[%clk 0:01:14]} 25. Rxe5 {[%clk 0:00:26]}  Rh6 {[%clk 0:01:13]} 26. Rxg5 {[%clk 0:00:26]}  Nxh3 {[%clk 0:01:13]} 27. Re5 {[%clk 0:00:06]}  Rg8 {[%clk 0:01:13]} 0-1


[Site "https://www.chess.com"]

[Event "Titled Tuesday Blitz September 20 Late 2022"]
[White "Suarez Uriel, Adrian"]
[Black "Yurovskykh, Oleksandr"]
[WhiteFideId "22230874"]
[BlackFideId "14134020"]
[WhiteElo "2310"]
[BlackElo "2303"]
[Result "0-1"]
[Round "10"]
[TimeControl "180+1"]
[Date "2022.09.20"]
[WhiteClock "0:00:44"]
[BlackClock "0:00:20"]

1. e4 {[%clk 0:03:00]}  d5 {[%clk 0:02:59]} 2. exd5 {[%clk 0:03:00]}  Qxd5 {[%clk 0:03:00]} 3. Nc3 {[%clk 0:03:00]}  Qd8 {[%clk 0:03:00]} 4. d4 {[%clk 0:02:58]}  Nf6 {[%clk 0:03:00]} 5. Nf3 {[%clk 0:02:55]}  Bg4 {[%clk 0:03:00]} 6. h3 {[%clk 0:02:55]}  Bxf3 {[%clk 0:03:00]} 7. Qxf3 {[%clk 0:02:54]}  c6 {[%clk 0:03:01]} 8. Be3 {[%clk 0:02:52]}  e6 {[%clk 0:03:01]} 9. O-O-O {[%clk 0:02:52]}  Bb4 {[%clk 0:03:00]} 10. Ne2 {[%clk 0:02:48]}  Qd5 {[%clk 0:02:59]} 11. Qxd5 {[%clk 0:02:46]}  cxd5 {[%clk 0:02:58]} 12. g4 {[%clk 0:02:43]}  Nc6 {[%clk 0:02:54]} 13. c3 {[%clk 0:02:42]}  Bd6 {[%clk 0:02:54]} 14. Kb1 {[%clk 0:02:41]}  h5 {[%clk 0:02:43]} 15. g5 {[%clk 0:02:39]}  Ng8 {[%clk 0:02:42]} 16. h4 {[%clk 0:02:37]}  Nge7 {[%clk 0:02:41]} 17. Ng3 {[%clk 0:02:30]}  g6 {[%clk 0:02:41]} 18. Bd3 {[%clk 0:02:29]}  Nf5 {[%clk 0:02:38]} 19. Nxf5 {[%clk 0:02:29]}  gxf5 {[%clk 0:02:39]} 20. Be2 {[%clk 0:02:25]}  Ne7 {[%clk 0:02:38]} 21. Bf3 {[%clk 0:02:18]}  Ng6 {[%clk 0:02:37]} 22. Bc1 {[%clk 0:02:16]}  Kd7 {[%clk 0:02:30]} 23. b3 {[%clk 0:02:14]}  Rac8 {[%clk 0:02:28]} 24. Bb2 {[%clk 0:02:14]}  b5 {[%clk 0:02:28]} 25. Rc1 {[%clk 0:02:13]}  Rc7 {[%clk 0:02:26]} 26. Rc2 {[%clk 0:02:12]}  Nf4 {[%clk 0:02:09]} 27. Rd2 {[%clk 0:02:07]}  Rhc8 {[%clk 0:02:06]} 28. Rc1 {[%clk 0:01:58]}  Ke7 {[%clk 0:02:06]} 29. Rcc2 {[%clk 0:01:55]}  Kf8 {[%clk 0:02:06]} 30. Rd1 {[%clk 0:01:54]}  Kg7 {[%clk 0:02:06]} 31. Re1 {[%clk 0:01:46]}  Kg6 {[%clk 0:02:06]} 32. Re3 {[%clk 0:01:41]}  Bf8 {[%clk 0:01:48]} 33. Bh1 {[%clk 0:01:32]}  Bd6 {[%clk 0:01:43]} 34. Rf3 {[%clk 0:01:32]}  Kg7 {[%clk 0:01:43]} 35. Bc1 {[%clk 0:01:26]}  Ng6 {[%clk 0:01:43]} 36. Rh3 {[%clk 0:01:26]}  b4 {[%clk 0:01:35]} 37. Bf3 {[%clk 0:01:06]}  Rxc3 {[%clk 0:01:23]} 38. Rxc3 {[%clk 0:01:06]}  Rxc3 {[%clk 0:01:24]} 39. Bb2 {[%clk 0:01:07]}  Rc8 {[%clk 0:01:10]} 40. Bc1 {[%clk 0:01:07]}  Nf4 {[%clk 0:00:48]} 41. Bxf4 {[%clk 0:01:04]}  Bxf4 {[%clk 0:00:49]} 42. Bxh5 {[%clk 0:01:05]}  Rc1+ {[%clk 0:00:49]} 43. Kb2 {[%clk 0:01:05]}  Rf1 {[%clk 0:00:44]} 44. Rf3 {[%clk 0:01:04]}  Bd2 {[%clk 0:00:44]} 45. Kc2 {[%clk 0:00:57]}  Be1 {[%clk 0:00:31]} 46. Re3 {[%clk 0:00:44]}  Rxf2+ {[%clk 0:00:24]} 47. Kd3 {[%clk 0:00:44]}  Rd2# {[%clk 0:00:20]} 0-1


[Site "https://www.chess.com"]